Workbook

Sheet TOT-0116
B2: ANEXO I al Memorandum D.T.E.E. N° 294 / 2017
A4: ENTE NACIONAL REGULADOR
A5: DE LA ELECTRICIDAD
B7: SISTEMA DE TRANSPORTE DE ENERGÍA ELÉCTRICA POR DISTRIBUCIÓN TRONCAL
B9: TRANSNEA S.A.
B11: TOTAL DE PENALIZACIONES
B13: 2
B14: Desde el 01 al 31 de enero de 2016
B16: Sanciones duplicadas por tasa de falla > 4 Sal. x año/100km.
C18: 1.- | D18: LÍNEAS
D20: 1.1.- | E20: Equipamiento propio | I20: ='LI-01 (1)'!AA45 -> 1573663.47
C22: 2.- | D22: CONEXIÓN
D24: 2.1.- | E24: Transformación
E25: 2.1.1.- | F25: Equipamiento propio | I25: ='T-01 (2)'!AC43 -> 110761.19
F29: TOTAL | G29: =SUM(I20:I25) -> 1684424.66

Sheet LI-01 (1)
B2: =+'TOT-0116'!B2 -> ANEXO I al Memorandum D.T.E.E. N° 294 / 2017
A4: ENTE NACIONAL REGULADOR
A5: DE LA ELECTRICIDAD
F8: SISTEMA DE TRANSPORTE DE ENERGÍA ELÉCTRICA POR DISTRIBUCIÓN TRONCAL - TRANSNEA S.A.
F10: 1.- LÍNEAS
F12: 1.1.- Líneas propias
B14: =+'TOT-0116'!B14 -> Desde el 01 al 31 de enero de 2016
F16: $/100 km-h : LÍNEAS 220 kV | G16: 360.925
F17: $/100 km-h : LÍNEAS 132 kV | G17: 345.493 | K17: FACTOR DE PENALIZACIÓN K = | L17: =30*'TOT-0116'!B13 -> 60 | M17: =IF(L17=30," ",IF(L17=60,"Coeficiente duplicado por tasa de falla >4 Sal. x año/100 km.","REVISAR COEFICIENTE")) -> Coeficiente duplicado por tasa de falla >4 Sal. x año/100 km.
F18: $/100 km-h : LÍNEAS 33 kV | G18: 345.493
C19: 3 | D19: 4 | E19: 5 | F19: 6 | G19: 7 | H19: 8 | I19: 9 | J19: 10 | K19: 11 | L19: 12 | M19: 13 | N19: 14 | O19: 15 | P19: 16 | Q19: 17 | R19: 18 | S19: 19 | T19: 20 | U19: 21 | V19: 22 | W19: 23 | X19: 24 | Y19: 25 | Z19: 26 | AA19: 27
C20: N° | D20: INDISP | E20: ID EQUIPO | F20: LÍNEAS | G20: U [kV] | H20: Long. [km] | I20: $/h | J20: Salida | K20: Entrada | L20: Hs. Indisp. | M20: Minutos Indisp. | N20: Tipo Sal.(²) | O20: C.R. % | P20: PENALIZAC. PROGRAM. | Q20: REDUCC. PROGRAM. | R20: PENALIZACIÓN FORZADA Por Salida 1ras. 3 hs. hs. Restantes | U20: REDUCC. FORZADA Por Salida 1ras. 3 hs. hs. Restantes | X20: RESTANTE FORZADA | Y20: REDUCC. RESTANTE | Z20: Informó enTérm. | AA20: TOTAL PENALIZAC.
C23: 1 | D23: 261606 | E23: 748 | F23: STA. CATALINA - RESISTENCIA | G23: 132 | H23: 42 | I23: =IF(H23>25,H23,25)*IF(G23=220,$G$16,IF(G23=132,$G$17,$G$18))/100 -> 145.10706 | J23: 2016-01-01 | K23: 2016-01-31T23:59:59 | L23: =IF(F23="","",(K23-J23)*24) -> 743.9997222 | M23: =IF(F23="","",ROUND((K23-J23)*24*60,0)) -> 44640 | N23: P | O23: =IF(F23="","","--") -> -- | P23: =IF(N23="P",ROUND(M23/60,2)*I23*$L$17*0.01,"--") -> 64775.79158 | Q23: =IF(N23="RP",ROUND(M23/60,2)*I23*$L$17*0.01*O23/100,"--") -> -- | R23: =IF(N23="F",I23*$L$17,"--") -> -- | S23: =IF(AND(M23>10,N23="F"),I23*$L$17*IF(M23>180,3,ROUND(M23/60,2)),"--") -> -- | T23: =IF(AND(N23="F",M23>180),(ROUND(M23/60,2)-3)*I23*$L$17*0.1,"--") -> -- | U23: =IF(N23="R",I23*$L$17*O23/100,"--") -> -- | V23: =IF(AND(M23>10,N23="R"),I23*$L$17*O23/100*IF(M23>180,3,ROUND(M23/60,2)),"--") -> -- | W23: =IF(AND(N23="R",M23>180),(ROUND(M23/60,2)-3)*I23*$L$17*0.1*O23/100,"--") -> -- | X23: =IF(N23="RF",ROUND(M23/60,2)*I23*$L$17*0.1,"--") -> -- | Y23: =IF(N23="RR",ROUND(M23/60,2)*I23*$L$17*0.1*O23/100,"--") -> -- | Z23: SI | AA23: =IF(F23="","",SUM(P23:Y23)*IF(Z23="SI",1,2)) -> 64775.79158
C24: 2 | D24: 289100 | E24: 1002 | F24: BARRANQUERAS - CORRIENTES 1 | G24: 33 | H24: 11.80000019 | I24: =IF(H24>25,H24,25)*IF(G24=220,$G$16,IF(G24=132,$G$17,$G$18))/100 -> 86.37325 | J24: 2016-01-01 | K24: 2016-01-31T23:59:59 | L24: =IF(F24="","",(K24-J24)*24) -> 743.9997222 | M24: =IF(F24="","",ROUND((K24-J24)*24*60,0)) -> 44640 | N24: RF | O24: =IF(F24="","","--") -> -- | P24: =IF(N24="P",ROUND(M24/60,2)*I24*$L$17*0.01,"--") -> -- | Q24: =IF(N24="RP",ROUND(M24/60,2)*I24*$L$17*0.01*O24/100,"--") -> -- | R24: =IF(N24="F",I24*$L$17,"--") -> -- | S24: =IF(AND(M24>10,N24="F"),I24*$L$17*IF(M24>180,3,ROUND(M24/60,2)),"--") -> -- | T24: =IF(AND(N24="F",M24>180),(ROUND(M24/60,2)-3)*I24*$L$17*0.1,"--") -> -- | U24: =IF(N24="R",I24*$L$17*O24/100,"--") -> -- | V24: =IF(AND(M24>10,N24="R"),I24*$L$17*O24/100*IF(M24>180,3,ROUND(M24/60,2)),"--") -> -- | W24: =IF(AND(N24="R",M24>180),(ROUND(M24/60,2)-3)*I24*$L$17*0.1*O24/100,"--") -> -- | X24: =IF(N24="RF",ROUND(M24/60,2)*I24*$L$17*0.1,"--") -> 385570.188 | Y24: =IF(N24="RR",ROUND(M24/60,2)*I24*$L$17*0.1*O24/100,"--") -> -- | Z24: SI | AA24: =IF(F24="","",SUM(P24:Y24)*IF(Z24="SI",1,2)) -> 385570.188
C25: 3 | D25: 291181 | E25: 946 | F25: PASO DE LOS LIBRES - URUGUAYANA | G25: 132 | H25: 3.900000095 | I25: 86.37325 | J25: 2016-01-01 | K25: 2016-01-31T23:59:59 | L25: 743.9997222 | M25: 44640 | N25: RF | O25: -- | P25: -- | Q25: -- | R25: -- | S25: -- | T25: -- | U25: -- | V25: -- | W25: -- | X25: 385570.188 | Y25: -- | Z25: SI | AA25: 385570.188
C26: 4 | D26: 296379 | E26: 1003 | F26: BARRANQUERAS - CORRIENTES 2 | G26: 33 | H26: 11.80000019 | I26: 86.37325 | J26: 2016-01-01 | K26: 2016-01-31T23:59:59 | L26: 743.9997222 | M26: 44640 | N26: RF | O26: -- | P26: -- | Q26: -- | R26: -- | S26: -- | T26: -- | U26: -- | V26: -- | W26: -- | X26: 385570.188 | Y26: -- | Z26: SI | AA26: 385570.188
C27: 5 | D27: 296625 | E27: 743 | F27: SALTO GRANDE AR - CHAJARI | G27: 132 | H27: 60.90000153 | I27: 210.4052423 | J27: 2016-01-03T01:28:00 | K27: 2016-01-03T01:40:00 | L27: 0.2 | M27: 12 | N27: F | O27: -- | P27: -- | Q27: -- | R27: 12624.31454 | S27: 2524.862907 | T27: -- | U27: -- | V27: -- | W27: -- | X27: -- | Y27: -- | Z27: SI | AA27: 15149.17744
C28: 6 | D28: 296642 | E28: 5047 | F28: GRAN FORMOSA - CLORINDA | G28: 132 | H28: 103.5 | I28: 357.585255 | J28: 2016-01-03T05:13:00 | K28: 2016-01-03T06:06:00 | L28: 0.8833333332 | M28: 53 | N28: F | O28: -- | P28: -- | Q28: -- | R28: 21455.1153 | S28: 18880.50146 | T28: -- | U28: -- | V28: -- | W28: -- | X28: -- | Y28: -- | Z28: SI | AA28: 40335.61676
C29: 7 | D29: 296660 | E29: 5047 | F29: GRAN FORMOSA - CLORINDA | G29: 132 | H29: 103.5 | I29: 357.585255 | J29: 2016-01-03T08:03:00 | K29: 2016-01-03T08:37:00 | L29: 0.5666666666 | M29: 34 | N29: F | O29: -- | P29: -- | Q29: -- | R29: 21455.1153 | S29: 12229.41572 | T29: -- | U29: -- | V29: -- | W29: -- | X29: -- | Y29: -- | Z29: SI | AA29: 33684.53102
C30: 8 | D30: 297140 | E30: 4049 | F30: RINCON - VIRASORO 1 | G30: 132 | H30: 104.7 | I30: 361.731171 | J30: 2016-01-05T09:55:00 | K30: 2016-01-05T10:12:00 | L30: 0.2833333334 | M30: 17 | N30: F | O30: -- | P30: -- | Q30: -- | R30: 21703.87026 | S30: 6077.083673 | T30: -- | U30: -- | V30: -- | W30: -- | X30: -- | Y30: -- | Z30: SI | AA30: 27780.95393
C31: 9 | D31: 297505 | E31: 5047 | F31: GRAN FORMOSA - CLORINDA | G31: 132 | H31: 103.5 | I31: 357.585255 | J31: 2016-01-12T13:36:00 | K31: 2016-01-12T13:55:00 | L31: 0.3166666667 | M31: 19 | N31: F | O31: -- | P31: -- | Q31: -- | R31: 21455.1153 | S31: 6865.636896 | T31: -- | U31: -- | V31: -- | W31: -- | X31: -- | Y31: -- | Z31: SI | AA31: 28320.7522
C32: 10 | D32: 297543 | E32: 4584 | F32: EL COLORADO - PIRANE | G32: 132 | H32: 79.15000153 | I32: 273.4577148 | J32: 2016-01-12T14:10:00 | K32: 2016-01-12T17:27:00 | L32: 3.283333333 | M32: 197 | N32: F | O32: -- | P32: -- | Q32: -- | R32: 16407.46289 | S32: 49222.38866 | T32: 459.4089608 | U32: -- | V32: -- | W32: -- | X32: -- | Y32: -- | Z32: SI | AA32: 66089.26051
C33: 11 | D33: 297548 | E33: 5047 | F33: GRAN FORMOSA - CLORINDA | G33: 132 | H33: 103.5 | I33: 357.585255 | J33: 2016-01-12T14:10:00 | K33: 2016-01-12T14:43:00 | L33: 0.5499999999 | M33: 33 | N33: F | O33: -- | P33: -- | Q33: -- | R33: 21455.1153 | S33: 11800.31342 | T33: -- | U33: -- | V33: -- | W33: -- | X33: -- | Y33: -- | Z33: SI | AA33: 33255.42872
C34: 12 | D34: 297599 | E34: 5047 | F34: GRAN FORMOSA - CLORINDA | G34: 132 | H34: 103.5 | I34: 357.585255 | J34: 2016-01-14T14:05:00 | K34: 2016-01-14T14:23:00 | L34: 0.3000000001 | M34: 18 | N34: F | O34: -- | P34: -- | Q34: -- | R34: 21455.1153 | S34: 6436.53459 | T34: -- | U34: -- | V34: -- | W34: -- | X34: -- | Y34: -- | Z34: SI | AA34: 27891.64989
C35: 13 | D35: 297968 | E35: 5044 | F35: GRAN FORMOSA - PIRANE 1 | G35: 132 | H35: 111.5999985 | I35: 385.5701827 | J35: 2016-01-22T21:30:00 | K35: 2016-01-22T21:46:00 | L35: 0.2666666667 | M35: 16 | N35: F | O35: -- | P35: -- | Q35: -- | R35: 23134.21096 | S35: 6246.23696 | T35: -- | U35: -- | V35: -- | W35: -- | X35: -- | Y35: -- | Z35: SI | AA35: 29380.44792
C36: 14 | D36: 297992 | E36: 746 | F36: MONTE CASEROS - CHAJARI | G36: 132 | H36: 74.5 | I36: 257.392285 | J36: 2016-01-23T14:40:00 | K36: 2016-01-23T15:05:00 | L36: 0.4166666666 | M36: 25 | N36: F | O36: -- | P36: -- | Q36: -- | R36: 15443.5371 | S36: 6486.285582 | T36: -- | U36: -- | V36: -- | W36: -- | X36: -- | Y36: -- | Z36: SI | AA36: 21929.82268
C37: 15 | D37: 298008 | E37: 4317 | F37: PIRANE - IBARRETA | G37: 132 | H37: 91.80000305 | I37: 317.1625845 | J37: 2016-01-24T07:07:00 | K37: 2016-01-24T08:53:00 | L37: 1.766666667 | M37: 106 | N37: P | O37: -- | P37: 336.8266648 | Q37: -- | R37: -- | S37: -- | T37: -- | U37: -- | V37: -- | W37: -- | X37: -- | Y37: -- | Z37: SI | AA37: 336.8266648
C38: 16 | D38: 298332 | E38: 5426 | F38: CLORINDA - LAGUNA BLANCA | G38: 132 | H38: 59 | I38: 203.84087 | J38: 2016-01-25T14:48:00 | K38: 2016-01-25T15:00:00 | L38: 0.2 | M38: 12 | N38: F | O38: -- | P38: -- | Q38: -- | R38: 12230.4522 | S38: 2446.09044 | T38: -- | U38: -- | V38: -- | W38: -- | X38: -- | Y38: -- | Z38: SI | AA38: 14676.54264
C39: 17 | D39: 298339 | E39: 743 | F39: SALTO GRANDE AR - CHAJARI | G39: 132 | H39: 60.90000153 | I39: 210.4052423 | J39: 2016-01-26T22:05:00 | K39: 2016-01-26T22:09:00 | L39: 0.06666666671 | M39: 4 | N39: F | O39: -- | P39: -- | Q39: -- | R39: 12624.31454 | S39: -- | T39: -- | U39: -- | V39: -- | W39: -- | X39: -- | Y39: -- | Z39: SI | AA39: 12624.31454
C40: 18 | D40: 298357 | E40: 5044 | F40: GRAN FORMOSA - PIRANE 1 | G40: 132 | H40: 111.5999985 | I40: 385.5701827 | J40: 2016-01-31T07:07:00 | K40: 2016-01-31T10:14:00 | L40: 3.116666667 | M40: 187 | N40: P | O40: -- | P40: 721.7873821 | Q40: -- | R40: -- | S40: -- | T40: -- | U40: -- | V40: -- | W40: -- | X40: -- | Y40: -- | Z40: SI | AA40: 721.7873821
I41: =IF(H41>25,H41,25)*IF(G41=220,$G$16,IF(G41=132,$G$17,$G$18))/100 -> 86.37325 | L41: =IF(F41="","",(K41-J41)*24) ->  | M41: =IF(F41="","",ROUND((K41-J41)*24*60,0)) ->  | O41: =IF(F41="","","--") ->  | P41: =IF(N41="P",ROUND(M41/60,2)*I41*$L$17*0.01,"--") -> -- | Q41: =IF(N41="RP",ROUND(M41/60,2)*I41*$L$17*0.01*O41/100,"--") -> -- | R41: =IF(N41="F",I41*$L$17,"--") -> -- | S41: =IF(AND(M41>10,N41="F"),I41*$L$17*IF(M41>180,3,ROUND(M41/60,2)),"--") -> -- | T41: =IF(AND(N41="F",M41>180),(ROUND(M41/60,2)-3)*I41*$L$17*0.1,"--") -> -- | U41: =IF(N41="R",I41*$L$17*O41/100,"--") -> -- | V41: =IF(AND(M41>10,N41="R"),I41*$L$17*O41/100*IF(M41>180,3,ROUND(M41/60,2)),"--") -> -- | W41: =IF(AND(N41="R",M41>180),(ROUND(M41/60,2)-3)*I41*$L$17*0.1*O41/100,"--") -> -- | X41: =IF(N41="RF",ROUND(M41/60,2)*I41*$L$17*0.1,"--") -> -- | Y41: =IF(N41="RR",ROUND(M41/60,2)*I41*$L$17*0.1*O41/100,"--") -> -- | Z41: =IF(F41="","","SI") -> 
I42: =IF(H42>25,H42,25)*IF(G42=220,$G$16,IF(G42=132,$G$17,$G$18))/100 -> 86.37325 | L42: =IF(F42="","",(K42-J42)*24) ->  | M42: =IF(F42="","",ROUND((K42-J42)*24*60,0)) ->  | O42: =IF(F42="","","--") ->  | P42: =IF(N42="P",ROUND(M42/60,2)*I42*$L$17*0.01,"--") -> -- | Q42: =IF(N42="RP",ROUND(M42/60,2)*I42*$L$17*0.01*O42/100,"--") -> -- | R42: =IF(N42="F",I42*$L$17,"--") -> -- | S42: =IF(AND(M42>10,N42="F"),I42*$L$17*IF(M42>180,3,ROUND(M42/60,2)),"--") -> -- | T42: =IF(AND(N42="F",M42>180),(ROUND(M42/60,2)-3)*I42*$L$17*0.1,"--") -> -- | U42: =IF(N42="R",I42*$L$17*O42/100,"--") -> -- | V42: =IF(AND(M42>10,N42="R"),I42*$L$17*O42/100*IF(M42>180,3,ROUND(M42/60,2)),"--") -> -- | W42: =IF(AND(N42="R",M42>180),(ROUND(M42/60,2)-3)*I42*$L$17*0.1*O42/100,"--") -> -- | X42: =IF(N42="RF",ROUND(M42/60,2)*I42*$L$17*0.1,"--") -> -- | Y42: =IF(N42="RR",ROUND(M42/60,2)*I42*$L$17*0.1*O42/100,"--") -> -- | Z42: =IF(F42="","","SI") -> 
I43: =IF(H43>25,H43,25)*IF(G43=220,$G$16,IF(G43=132,$G$17,$G$18))/100 -> 86.37325 | L43: =IF(F43="","",(K43-J43)*24) ->  | M43: =IF(F43="","",ROUND((K43-J43)*24*60,0)) ->  | O43: =IF(F43="","","--") ->  | P43: =IF(N43="P",ROUND(M43/60,2)*I43*$L$17*0.01,"--") -> -- | Q43: =IF(N43="RP",ROUND(M43/60,2)*I43*$L$17*0.01*O43/100,"--") -> -- | R43: =IF(N43="F",I43*$L$17,"--") -> -- | S43: =IF(AND(M43>10,N43="F"),I43*$L$17*IF(M43>180,3,ROUND(M43/60,2)),"--") -> -- | T43: =IF(AND(N43="F",M43>180),(ROUND(M43/60,2)-3)*I43*$L$17*0.1,"--") -> -- | U43: =IF(N43="R",I43*$L$17*O43/100,"--") -> -- | V43: =IF(AND(M43>10,N43="R"),I43*$L$17*O43/100*IF(M43>180,3,ROUND(M43/60,2)),"--") -> -- | W43: =IF(AND(N43="R",M43>180),(ROUND(M43/60,2)-3)*I43*$L$17*0.1*O43/100,"--") -> -- | X43: =IF(N43="RF",ROUND(M43/60,2)*I43*$L$17*0.1,"--") -> -- | Y43: =IF(N43="RR",ROUND(M43/60,2)*I43*$L$17*0.1*O43/100,"--") -> -- | Z43: =IF(F43="","","SI") -> 
C45: (²) | D45: P - PROGRAMADA ; F - FORZADA ; RF - RESTANTE FORZADA | P45: =SUM(P21:P44) -> 65834.40563 | Q45: =SUM(Q21:Q44) -> 0 | R45: =SUM(R21:R44) -> 221443.739 | S45: 129215.3503 | T45: 459.4089608 | U45: 0 | V45: 0 | W45: 0 | X45: 1156710.564 | Y45: 0 | AA45: =ROUND(SUM(AA21:AA44),2) -> 1573663.47

Sheet T-01 (1)
B2: =+'TOT-0116'!B2 -> ANEXO I al Memorandum D.T.E.E. N° 294 / 2017
A4: ENTE NACIONAL REGULADOR
A5: DE LA ELECTRICIDAD
F8: SISTEMA DE TRANSPORTE DE ENERGÍA ELÉCTRICA POR DISTRIBUCIÓN TRONCAL - TRANSNEA S.A.
F10: 2.- CONEXIÓN
F12: 2.1.- Transformación
B14: =+'TOT-0116'!B14 -> Desde el 01 al 31 de enero de 2016
F16: Por Transformador [$ / h - MVA] = | I16: 1.235
F17: Coeficiente de penalización por salida forzada = | I17: =30*'TOT-0116'!B13 -> 60 | K17: =IF(I17=30," ",IF(I17=60," Coeficiente duplicado por tasa de falla >4 Sal. x año/100 km."," REVISAR COEFICIENTE")) -> Coeficiente duplicado por tasa de falla >4 Sal. x año/100 km.
C18: 3 | D18: 4 | E18: 5 | F18: 6 | G18: 7 | H18: 8 | I18: 9 | J18: 10 | K18: 11 | L18: 12 | M18: 13 | N18: 14 | O18: 15 | P18: 16 | Q18: 17 | R18: 18 | S18: 19 | T18: 20 | U18: 21 | V18: 22 | W18: 23 | X18: 24 | Y18: 25 | Z18: 26 | AA18: 27 | AB18: 28 | AC18: 29
C19: N° | D19: INDISP | E19: ID EQUIPO | F19: ESTACIÓN TRANSFORMADORA | G19: EQUIPO | H19: POT. [MVA] | I19: U [kV] | J19: $/h | K19: Salida | L19: Entrada | M19: Hs. Indisp. | N19: Mtos. Indisp. | O19: Tipo Sal.(²) | P19: AUT. | Q19: C.R. % | R19: E.N.S. | S19: K (P;ENS) | T19: PENALIZ. PROGRAM. | U19: REDUCC. PROGRAM. | V19: PENALIZACIÓN FORZADA Por Salida hs. Restantes | X19: REDUCC. FORZADA Por Salida hs. Restantes | Z19: RESTANTE FORZADA | AA19: REDUCC. RESTANTE | AB19: Informó enTérm. | AC19: TOTAL PENALIZAC.
C22: 19 | D22: 296361 | E22: 752 | F22: BARRANQUERAS | G22: TRAFO 7 | H22: 30 | I22: 132/33/13,2 | J22: =H22*$I$16 -> 37.05 | K22: 2016-01-01 | L22: 2016-01-31T23:59:59 | M22: =IF(F22="","",(L22-K22)*24) -> 743.9997222 | N22: =IF(F22="","",ROUND((L22-K22)*24*60,0)) -> 44640 | O22: RP | P22: =IF(F22="","",IF(OR(O22="P",O22="RP"),"--","NO")) -> -- | Q22: 50 | R22: =IF(F22="","","NO") -> NO | S22: =$I$17*IF(OR(O22="P",O22="RP"),0.1,1)*IF(R22="SI",1,0.1) -> 0.6 | T22: =IF(O22="P",J22*S22*ROUND(N22/60,2),"--") -> -- | U22: =IF(O22="RP",J22*S22*ROUND(N22/60,2)*Q22/100,"--") -> 8269.56 | V22: =IF(AND(O22="F",P22="NO"),J22*S22,"--") -> -- | W22: =IF(O22="F",J22*S22*ROUND(N22/60,2),"--") -> -- | X22: =IF(AND(O22="R",P22="NO"),J22*S22*Q22/100,"--") -> -- | Y22: =IF(O22="R",J22*S22*ROUND(N22/60,2)*Q22/100,"--") -> -- | Z22: =IF(O22="RF",J22*S22*ROUND(N22/60,2),"--") -> -- | AA22: =IF(O22="RR",J22*S22*ROUND(N22/60,2)*Q22/100,"--") -> -- | AB22: SI | AC22: =IF(F22="","",SUM(T22:AA22)*IF(AB22="SI",1,2)) -> 8269.56
C23: 20 | D23: 297499 | E23: 768 | F23: GOYA | G23: TRAFO 2 | H23: 15 | I23: 132/33/13,2 | J23: =H23*$I$16 -> 18.525 | K23: 2016-01-11T14:39:00 | L23: 2016-01-11T14:42:00 | M23: =IF(F23="","",(L23-K23)*24) -> 0.04999999999 | N23: =IF(F23="","",ROUND((L23-K23)*24*60,0)) -> 3 | O23: R | P23: =IF(F23="","",IF(OR(O23="P",O23="RP"),"--","NO")) -> NO | Q23: 40 | R23: SI | S23: =$I$17*IF(OR(O23="P",O23="RP"),0.1,1)*IF(R23="SI",1,0.1) -> 60 | T23: =IF(O23="P",J23*S23*ROUND(N23/60,2),"--") -> -- | U23: =IF(O23="RP",J23*S23*ROUND(N23/60,2)*Q23/100,"--") -> -- | V23: =IF(AND(O23="F",P23="NO"),J23*S23,"--") -> -- | W23: =IF(O23="F",J23*S23*ROUND(N23/60,2),"--") -> -- | X23: =IF(AND(O23="R",P23="NO"),J23*S23*Q23/100,"--") -> 444.6 | Y23: =IF(O23="R",J23*S23*ROUND(N23/60,2)*Q23/100,"--") -> 22.23 | Z23: =IF(O23="RF",J23*S23*ROUND(N23/60,2),"--") -> -- | AA23: =IF(O23="RR",J23*S23*ROUND(N23/60,2)*Q23/100,"--") -> -- | AB23: SI | AC23: =IF(F23="","",SUM(T23:AA23)*IF(AB23="SI",1,2)) -> 466.83
C24: 21 | D24: 297503 | E24: 5250 | F24: EL COLORADO | G24: TRAFO 2 | H24: 15 | I24: 132/33/13,2 | J24: 18.525 | K24: 2016-01-11T15:38:00 | L24: 2016-01-11T15:46:00 | M24: 0.1333333334 | N24: 8 | O24: R | P24: NO | Q24: 40 | R24: SI | S24: 60 | T24: -- | U24: -- | V24: -- | W24: -- | X24: 444.6 | Y24: 57.798 | Z24: -- | AA24: -- | AB24: SI | AC24: 502.398
C25: 22 | D25: 297523 | E25: 759 | F25: CORRIENTES | G25: TRAFO 3 | H25: 30 | I25: 132/33/13,2 | J25: 37.05 | K25: 2016-01-12T13:36:00 | L25: 2016-01-12T13:59:00 | M25: 0.3833333334 | N25: 23 | O25: R | P25: NO | Q25: 60 | R25: SI | S25: 60 | T25: -- | U25: -- | V25: -- | W25: -- | X25: 1333.8 | Y25: 506.844 | Z25: -- | AA25: -- | AB25: SI | AC25: 1840.644
C26: 23 | D26: 297524 | E26: 3625 | F26: CORRIENTES | G26: TRAFO 4 | H26: 50 | I26: 132/33/13,2 | J26: 61.75 | K26: 2016-01-12T13:36:00 | L26: 2016-01-12T13:59:00 | M26: 0.3833333334 | N26: 23 | O26: F | P26: NO | Q26: 0,000 | R26: SI | S26: 60 | T26: -- | U26: -- | V26: 3705 | W26: 1407.9 | X26: -- | Y26: -- | Z26: -- | AA26: -- | AB26: SI | AC26: 5112.9
C27: 24 | D27: 297566 | E27: 3305 | F27: FORMOSA | G27: TRAFO 1 | H27: 30 | I27: 132/33/13,2 | J27: 37.05 | K27: 2016-01-12T14:10:00 | L27: 2016-01-12T14:23:00 | M27: 0.2166666667 | N27: 13 | O27: F | P27: NO | Q27: 0,000 | R27: SI | S27: 60 | T27: -- | U27: -- | V27: 2223 | W27: 489.06 | X27: -- | Y27: -- | Z27: -- | AA27: -- | AB27: SI | AC27: 2712.06
C28: 25 | D28: 297567 | E28: 764 | F28: FORMOSA | G28: TRAFO 3 | H28: 30 | I28: 132/13,2 | J28: 37.05 | K28: 2016-01-12T14:10:00 | L28: 2016-01-12T14:23:00 | M28: 0.2166666667 | N28: 13 | O28: F | P28: NO | Q28: 0,000 | R28: SI | S28: 60 | T28: -- | U28: -- | V28: 2223 | W28: 489.06 | X28: -- | Y28: -- | Z28: -- | AA28: -- | AB28: SI | AC28: 2712.06
C29: 26 | D29: 297568 | E29: 765 | F29: FORMOSA | G29: TRAFO 2 | H29: 15 | I29: 132/33/13,2 | J29: 18.525 | K29: 2016-01-12T14:10:00 | L29: 2016-01-12T14:23:00 | M29: 0.2166666667 | N29: 13 | O29: F | P29: NO | Q29: 0,000 | R29: SI | S29: 60 | T29: -- | U29: -- | V29: 1111.5 | W29: 244.53 | X29: -- | Y29: -- | Z29: -- | AA29: -- | AB29: SI | AC29: 1356.03
C30: 27 | D30: 297569 | E30: 1336 | F30: FORMOSA | G30: TRAFO 4 | H30: 30 | I30: 132/33/13,2 | J30: 37.05 | K30: 2016-01-12T14:10:00 | L30: 2016-01-12T14:23:00 | M30: 0.2166666667 | N30: 13 | O30: F | P30: NO | Q30: 0,000 | R30: SI | S30: 60 | T30: -- | U30: -- | V30: 2223 | W30: 489.06 | X30: -- | Y30: -- | Z30: -- | AA30: -- | AB30: SI | AC30: 2712.06
C31: 28 | D31: 297570 | E31: 4611 | F31: FORMOSA | G31: TRAFO 5 | H31: 30 | I31: 132/33/13,2 | J31: 37.05 | K31: 2016-01-12T14:10:00 | L31: 2016-01-12T14:23:00 | M31: 0.2166666667 | N31: 13 | O31: F | P31: NO | Q31: 0,000 | R31: SI | S31: 60 | T31: -- | U31: -- | V31: 2223 | W31: 489.06 | X31: -- | Y31: -- | Z31: -- | AA31: -- | AB31: SI | AC31: 2712.06
C32: 29 | D32: 297596 | E32: 4263 | F32: BELLA VISTA | G32: TRAFO 3 | H32: 7.5 | I32: 132/33/13.2 | J32: 9.2625 | K32: 2016-01-12T15:36:00 | L32: 2016-01-12T16:04:00 | M32: 0.4666666666 | N32: 28 | O32: R | P32: NO | Q32: 60 | R32: SI | S32: 60 | T32: -- | U32: -- | V32: -- | W32: -- | X32: 333.45 | Y32: 156.7215 | Z32: -- | AA32: -- | AB32: SI | AC32: 490.1715
C33: 30 | D33: 297617 | E33: 3305 | F33: FORMOSA | G33: TRAFO 1 | H33: 30 | I33: 132/33/13,2 | J33: 37.05 | K33: 2016-01-14T14:05:00 | L33: 2016-01-14T14:24:00 | M33: 0.3166666667 | N33: 19 | O33: F | P33: NO | Q33: 0,000 | R33: SI | S33: 60 | T33: -- | U33: -- | V33: 2223 | W33: 711.36 | X33: -- | Y33: -- | Z33: -- | AA33: -- | AB33: SI | AC33: 2934.36
C34: 31 | D34: 297618 | E34: 764 | F34: FORMOSA | G34: TRAFO 3 | H34: 30 | I34: 132/13,2 | J34: 37.05 | K34: 2016-01-14T14:05:00 | L34: 2016-01-14T14:24:00 | M34: 0.3166666667 | N34: 19 | O34: F | P34: NO | Q34: 0,000 | R34: SI | S34: 60 | T34: -- | U34: -- | V34: 2223 | W34: 711.36 | X34: -- | Y34: -- | Z34: -- | AA34: -- | AB34: SI | AC34: 2934.36
C35: 32 | D35: 297619 | E35: 765 | F35: FORMOSA | G35: TRAFO 2 | H35: 15 | I35: 132/33/13,2 | J35: 18.525 | K35: 2016-01-14T14:05:00 | L35: 2016-01-14T14:24:00 | M35: 0.3166666667 | N35: 19 | O35: F | P35: NO | Q35: 0,000 | R35: SI | S35: 60 | T35: -- | U35: -- | V35: 1111.5 | W35: 355.68 | X35: -- | Y35: -- | Z35: -- | AA35: -- | AB35: SI | AC35: 1467.18
C36: 33 | D36: 297620 | E36: 1336 | F36: FORMOSA | G36: TRAFO 4 | H36: 30 | I36: 132/33/13,2 | J36: 37.05 | K36: 2016-01-14T14:05:00 | L36: 2016-01-14T14:24:00 | M36: 0.3166666667 | N36: 19 | O36: F | P36: NO | Q36: 0,000 | R36: SI | S36: 60 | T36: -- | U36: -- | V36: 2223 | W36: 711.36 | X36: -- | Y36: -- | Z36: -- | AA36: -- | AB36: SI | AC36: 2934.36
C37: 34 | D37: 297621 | E37: 4611 | F37: FORMOSA | G37: TRAFO 5 | H37: 30 | I37: 132/33/13,2 | J37: 37.05 | K37: 2016-01-14T14:05:00 | L37: 2016-01-14T14:24:00 | M37: 0.3166666667 | N37: 19 | O37: F | P37: NO | Q37: 0,000 | R37: SI | S37: 60 | T37: -- | U37: -- | V37: 2223 | W37: 711.36 | X37: -- | Y37: -- | Z37: -- | AA37: -- | AB37: SI | AC37: 2934.36
C38: 35 | D38: 297647 | E38: 754 | F38: BARRANQUERAS | G38: TRAFO 1 | H38: 20 | I38: 33/13,2 | J38: 24.7 | K38: 2016-01-15T08:27:00 | L38: 2016-01-15T08:51:00 | M38: 0.4000000001 | N38: 24 | O38: F | P38: NO | Q38: 0,000 | R38: SI | S38: 60 | T38: -- | U38: -- | V38: 1482 | W38: 592.8 | X38: -- | Y38: -- | Z38: -- | AA38: -- | AB38: SI | AC38: 2074.8
C39: 36 | D39: 297648 | E39: 774 | F39: BARRANQUERAS | G39: TRAFO 2 | H39: 20 | I39: 33/13,2 | J39: =H39*$I$16 -> 24.7 | K39: 2016-01-15T08:27:00 | L39: 2016-01-15T08:51:00 | M39: =IF(F39="","",(L39-K39)*24) -> 0.4000000001 | N39: =IF(F39="","",ROUND((L39-K39)*24*60,0)) -> 24 | O39: F | P39: NO | Q39: 0,000 | R39: SI | S39: =$I$17*IF(OR(O39="P",O39="RP"),0.1,1)*IF(R39="SI",1,0.1) -> 60 | T39: =IF(O39="P",J39*S39*ROUND(N39/60,2),"--") -> -- | U39: =IF(O39="RP",J39*S39*ROUND(N39/60,2)*Q39/100,"--") -> -- | V39: =IF(AND(O39="F",P39="NO"),J39*S39,"--") -> 1482 | W39: =IF(O39="F",J39*S39*ROUND(N39/60,2),"--") -> 592.8 | X39: =IF(AND(O39="R",P39="NO"),J39*S39*Q39/100,"--") -> -- | Y39: =IF(O39="R",J39*S39*ROUND(N39/60,2)*Q39/100,"--") -> -- | Z39: =IF(O39="RF",J39*S39*ROUND(N39/60,2),"--") -> -- | AA39: =IF(O39="RR",J39*S39*ROUND(N39/60,2)*Q39/100,"--") -> -- | AB39: SI | AC39: 2074.8
C40: 37 | D40: 297846 | E40: 759 | F40: CORRIENTES | G40: TRAFO 3 | H40: 30 | I40: 132/33/13,2 | J40: =H40*$I$16 -> 37.05 | K40: 2016-01-20T14:36:00 | L40: 2016-01-20T23:38:00 | M40: =IF(F40="","",(L40-K40)*24) -> 9.033333333 | N40: =IF(F40="","",ROUND((L40-K40)*24*60,0)) -> 542 | O40: F | P40: NO | Q40: 0,000 | R40: SI | S40: =$I$17*IF(OR(O40="P",O40="RP"),0.1,1)*IF(R40="SI",1,0.1) -> 60 | T40: =IF(O40="P",J40*S40*ROUND(N40/60,2),"--") -> -- | U40: =IF(O40="RP",J40*S40*ROUND(N40/60,2)*Q40/100,"--") -> -- | V40: =IF(AND(O40="F",P40="NO"),J40*S40,"--") -> 2223 | W40: =IF(O40="F",J40*S40*ROUND(N40/60,2),"--") -> 20073.69 | X40: =IF(AND(O40="R",P40="NO"),J40*S40*Q40/100,"--") -> -- | Y40: =IF(O40="R",J40*S40*ROUND(N40/60,2)*Q40/100,"--") -> -- | Z40: =IF(O40="RF",J40*S40*ROUND(N40/60,2),"--") -> -- | AA40: =IF(O40="RR",J40*S40*ROUND(N40/60,2)*Q40/100,"--") -> -- | AB40: SI | AC40: 22296.69
J41: =H41*$I$16 -> 0 | M41: =IF(F41="","",(L41-K41)*24) ->  | N41: =IF(F41="","",ROUND((L41-K41)*24*60,0)) ->  | Q41: =IF(F41="","","--") ->  | R41: =IF(F41="","","NO") ->  | S41: =$I$17*IF(OR(O41="P",O41="RP"),0.1,1)*IF(R41="SI",1,0.1) -> 6 | T41: =IF(O41="P",J41*S41*ROUND(N41/60,2),"--") -> -- | U41: =IF(O41="RP",J41*S41*ROUND(N41/60,2)*Q41/100,"--") -> -- | V41: =IF(AND(O41="F",P41="NO"),J41*S41,"--") -> -- | W41: =IF(O41="F",J41*S41*ROUND(N41/60,2),"--") -> -- | X41: =IF(AND(O41="R",P41="NO"),J41*S41*Q41/100,"--") -> -- | Y41: =IF(O41="R",J41*S41*ROUND(N41/60,2)*Q41/100,"--") -> -- | Z41: =IF(O41="RF",J41*S41*ROUND(N41/60,2),"--") -> -- | AA41: =IF(O41="RR",J41*S41*ROUND(N41/60,2)*Q41/100,"--") -> -- | AB41: =IF(F41="","","SI") -> 
C43: (²) | D43: F - FORZADA ; RP - REDUCCIÓN PROGRAMADA ; R - REDUCCIÓN FORZADA | T43: =SUM(T20:T42) -> 0 | U43: =SUM(U20:U42) -> 8269.56 | V43: 28899 | W43: 28069.08 | X43: 2556.45 | Y43: 743.5935 | Z43: 0 | AA43: 0 | AC43: =ROUND(SUM(AC20:AC42),2) -> 68537.68

Sheet T-01 (2)
B2: =+'TOT-0116'!B2 -> ANEXO I al Memorandum D.T.E.E. N° 294 / 2017
A4: ENTE NACIONAL REGULADOR
A5: DE LA ELECTRICIDAD
F8: SISTEMA DE TRANSPORTE DE ENERGÍA ELÉCTRICA POR DISTRIBUCIÓN TRONCAL - TRANSNEA S.A.
F10: 2.- CONEXIÓN
F12: 2.1.- Transformación
B14: =+'TOT-0116'!B14 -> Desde el 01 al 31 de enero de 2016
F16: Por Transformador [$ / h - MVA] = | I16: 1.235
F17: Coeficiente de penalización por salida forzada = | I17: =30*'TOT-0116'!B13 -> 60 | K17: =IF(I17=30," ",IF(I17=60," Coeficiente duplicado por tasa de falla >4 Sal. x año/100 km."," REVISAR COEFICIENTE")) -> Coeficiente duplicado por tasa de falla >4 Sal. x año/100 km.
C18: 3 | D18: 4 | E18: 5 | F18: 6 | G18: 7 | H18: 8 | I18: 9 | J18: 10 | K18: 11 | L18: 12 | M18: 13 | N18: 14 | O18: 15 | P18: 16 | Q18: 17 | R18: 18 | S18: 19 | T18: 20 | U18: 21 | V18: 22 | W18: 23 | X18: 24 | Y18: 25 | Z18: 26 | AA18: 27 | AB18: 28 | AC18: 29
C19: N° | D19: INDISP | E19: ID EQUIPO | F19: ESTACIÓN TRANSFORMADORA | G19: EQUIPO | H19: POT. [MVA] | I19: U [kV] | J19: $/h | K19: Salida | L19: Entrada | M19: Hs. Indisp. | N19: Mtos. Indisp. | O19: Tipo Sal.(²) | P19: AUT. | Q19: C.R. % | R19: E.N.S. | S19: K (P;ENS) | T19: PENALIZ. PROGRAM. | U19: REDUCC. PROGRAM. | V19: PENALIZACIÓN FORZADA Por Salida hs. Restantes | X19: REDUCC. FORZADA Por Salida hs. Restantes | Z19: RESTANTE FORZADA | AA19: REDUCC. RESTANTE | AB19: Informó enTérm. | AC19: TOTAL PENALIZAC.
AC20: ='T-01 (1)'!AC43 -> 68537.68
C22: 38 | D22: 297847 | E22: 3625 | F22: CORRIENTES | G22: TRAFO 4 | H22: 50 | I22: 132/33/13,2 | J22: =H22*$I$16 -> 61.75 | K22: 2016-01-20T14:36:00 | L22: 2016-01-20T21:09:00 | M22: =IF(F22="","",(L22-K22)*24) -> 6.55 | N22: =IF(F22="","",ROUND((L22-K22)*24*60,0)) -> 393 | O22: F | P22: =IF(F22="","",IF(OR(O22="P",O22="RP"),"--","NO")) -> NO | Q22: 0,000 | R22: SI | S22: =$I$17*IF(OR(O22="P",O22="RP"),0.1,1)*IF(R22="SI",1,0.1) -> 60 | T22: =IF(O22="P",J22*S22*ROUND(N22/60,2),"--") -> -- | U22: =IF(O22="RP",J22*S22*ROUND(N22/60,2)*Q22/100,"--") -> -- | V22: =IF(AND(O22="F",P22="NO"),J22*S22,"--") -> 3705 | W22: =IF(O22="F",J22*S22*ROUND(N22/60,2),"--") -> 24267.75 | X22: =IF(AND(O22="R",P22="NO"),J22*S22*Q22/100,"--") -> -- | Y22: =IF(O22="R",J22*S22*ROUND(N22/60,2)*Q22/100,"--") -> -- | Z22: =IF(O22="RF",J22*S22*ROUND(N22/60,2),"--") -> -- | AA22: =IF(O22="RR",J22*S22*ROUND(N22/60,2)*Q22/100,"--") -> -- | AB22: SI | AC22: =IF(F22="","",SUM(T22:AA22)*IF(AB22="SI",1,2)) -> 27972.75
C23: 39 | D23: 297866 | E23: 4263 | F23: BELLA VISTA | G23: TRAFO 3 | H23: 7.5 | I23: 132/33/13.2 | J23: =H23*$I$16 -> 9.2625 | K23: 2016-01-20T14:36:00 | L23: 2016-01-20T15:20:00 | M23: =IF(F23="","",(L23-K23)*24) -> 0.7333333335 | N23: =IF(F23="","",ROUND((L23-K23)*24*60,0)) -> 44 | O23: R | P23: =IF(F23="","",IF(OR(O23="P",O23="RP"),"--","NO")) -> NO | Q23: 60 | R23: SI | S23: =$I$17*IF(OR(O23="P",O23="RP"),0.1,1)*IF(R23="SI",1,0.1) -> 60 | T23: =IF(O23="P",J23*S23*ROUND(N23/60,2),"--") -> -- | U23: =IF(O23="RP",J23*S23*ROUND(N23/60,2)*Q23/100,"--") -> -- | V23: =IF(AND(O23="F",P23="NO"),J23*S23,"--") -> -- | W23: =IF(O23="F",J23*S23*ROUND(N23/60,2),"--") -> -- | X23: =IF(AND(O23="R",P23="NO"),J23*S23*Q23/100,"--") -> 333.45 | Y23: =IF(O23="R",J23*S23*ROUND(N23/60,2)*Q23/100,"--") -> 243.4185 | Z23: =IF(O23="RF",J23*S23*ROUND(N23/60,2),"--") -> -- | AA23: =IF(O23="RR",J23*S23*ROUND(N23/60,2)*Q23/100,"--") -> -- | AB23: SI | AC23: =IF(F23="","",SUM(T23:AA23)*IF(AB23="SI",1,2)) -> 576.8685
C24: 40 | D24: 297869 | E24: 3305 | F24: FORMOSA | G24: TRAFO 1 | H24: 30 | I24: 132/33/13,2 | J24: 37.05 | K24: 2016-01-20T14:36:00 | L24: 2016-01-20T14:55:00 | M24: 0.3166666668 | N24: 19 | O24: F | P24: NO | Q24: 0,000 | R24: SI | S24: 60 | T24: -- | U24: -- | V24: 2223 | W24: 711.36 | X24: -- | Y24: -- | Z24: -- | AA24: -- | AB24: SI | AC24: 2934.36
C25: 41 | D25: 297870 | E25: 764 | F25: FORMOSA | G25: TRAFO 3 | H25: 30 | I25: 132/13,2 | J25: 37.05 | K25: 2016-01-20T14:36:00 | L25: 2016-01-20T14:55:00 | M25: 0.3166666668 | N25: 19 | O25: F | P25: NO | Q25: 0,000 | R25: SI | S25: 60 | T25: -- | U25: -- | V25: 2223 | W25: 711.36 | X25: -- | Y25: -- | Z25: -- | AA25: -- | AB25: SI | AC25: 2934.36
C26: 42 | D26: 297871 | E26: 765 | F26: FORMOSA | G26: TRAFO 2 | H26: 15 | I26: 132/33/13,2 | J26: 18.525 | K26: 2016-01-20T14:36:00 | L26: 2016-01-20T14:55:00 | M26: 0.3166666668 | N26: 19 | O26: F | P26: NO | Q26: 0,000 | R26: SI | S26: 60 | T26: -- | U26: -- | V26: 1111.5 | W26: 355.68 | X26: -- | Y26: -- | Z26: -- | AA26: -- | AB26: SI | AC26: 1467.18
C27: 43 | D27: 297872 | E27: 1336 | F27: FORMOSA | G27: TRAFO 4 | H27: 30 | I27: 132/33/13,2 | J27: 37.05 | K27: 2016-01-20T14:36:00 | L27: 2016-01-20T14:55:00 | M27: 0.3166666668 | N27: 19 | O27: F | P27: NO | Q27: 0,000 | R27: SI | S27: 60 | T27: -- | U27: -- | V27: 2223 | W27: 711.36 | X27: -- | Y27: -- | Z27: -- | AA27: -- | AB27: SI | AC27: 2934.36
C28: 44 | D28: 297873 | E28: 4611 | F28: FORMOSA | G28: TRAFO 5 | H28: 30 | I28: 132/33/13,2 | J28: 37.05 | K28: 2016-01-20T14:36:00 | L28: 2016-01-20T14:55:00 | M28: 0.3166666668 | N28: 19 | O28: F | P28: NO | Q28: 0,000 | R28: SI | S28: 60 | T28: -- | U28: -- | V28: 2223 | W28: 711.36 | X28: -- | Y28: -- | Z28: -- | AA28: -- | AB28: SI | AC28: 2934.36
C29: 45 | D29: 297965 | E29: 4263 | F29: BELLA VISTA | G29: TRAFO 3 | H29: 7.5 | I29: 132/33/13.2 | J29: 9.2625 | K29: 2016-01-21T15:09:00 | L29: 2016-01-21T15:31:00 | M29: 0.3666666666 | N29: 22 | O29: R | P29: NO | Q29: 60 | R29: SI | S29: 60 | T29: -- | U29: -- | V29: -- | W29: -- | X29: 333.45 | Y29: 123.3765 | Z29: -- | AA29: -- | AB29: SI | AC29: 456.8265
C30: 46 | D30: 298356 | E30: 4318 | F30: PIRANE | G30: TRAFO 1 | H30: 15 | I30: 132/33/13.2 | J30: 18.525 | K30: 2016-01-31T07:06:00 | L30: 2016-01-31T08:13:00 | M30: 1.116666667 | N30: 67 | O30: P | P30: -- | Q30: 0,000 | R30: =IF(F30="","","NO") -> NO | S30: 0.6 | T30: 12.4488 | U30: -- | V30: -- | W30: -- | X30: -- | Y30: -- | Z30: -- | AA30: -- | AB30: SI | AC30: 12.4488
J31: 0 | Q31: =IF(F31="","","--") ->  | S31: 6 | T31: -- | U31: -- | V31: -- | W31: -- | X31: -- | Y31: -- | Z31: -- | AA31: -- | AB31: =IF(F31="","","SI") -> 
J32: 0 | S32: 6 | T32: -- | U32: -- | V32: -- | W32: -- | X32: -- | Y32: -- | Z32: -- | AA32: --
J33: 0 | S33: 6 | T33: -- | U33: -- | V33: -- | W33: -- | X33: -- | Y33: -- | Z33: -- | AA33: --
J34: 0 | S34: 6 | T34: -- | U34: -- | V34: -- | W34: -- | X34: -- | Y34: -- | Z34: -- | AA34: --
J35: 0 | S35: 6 | T35: -- | U35: -- | V35: -- | W35: -- | X35: -- | Y35: -- | Z35: -- | AA35: --
J36: 0 | S36: 6 | T36: -- | U36: -- | V36: -- | W36: -- | X36: -- | Y36: -- | Z36: -- | AA36: --
J37: 0 | S37: 6 | T37: -- | U37: -- | V37: -- | W37: -- | X37: -- | Y37: -- | Z37: -- | AA37: --
J38: 0 | S38: 6 | T38: -- | U38: -- | V38: -- | W38: -- | X38: -- | Y38: -- | Z38: -- | AA38: --
J39: =H39*$I$16 -> 0 | M39: =IF(F39="","",(L39-K39)*24) ->  | N39: =IF(F39="","",ROUND((L39-K39)*24*60,0)) ->  | Q39: =IF(F39="","","--") ->  | R39: =IF(F39="","","NO") ->  | S39: =$I$17*IF(OR(O39="P",O39="RP"),0.1,1)*IF(R39="SI",1,0.1) -> 6 | T39: =IF(O39="P",J39*S39*ROUND(N39/60,2),"--") -> -- | U39: =IF(O39="RP",J39*S39*ROUND(N39/60,2)*Q39/100,"--") -> -- | V39: =IF(AND(O39="F",P39="NO"),J39*S39,"--") -> -- | W39: =IF(O39="F",J39*S39*ROUND(N39/60,2),"--") -> -- | X39: =IF(AND(O39="R",P39="NO"),J39*S39*Q39/100,"--") -> -- | Y39: =IF(O39="R",J39*S39*ROUND(N39/60,2)*Q39/100,"--") -> -- | Z39: =IF(O39="RF",J39*S39*ROUND(N39/60,2),"--") -> -- | AA39: =IF(O39="RR",J39*S39*ROUND(N39/60,2)*Q39/100,"--") -> -- | AB39: =IF(F39="","","SI") -> 
J40: =H40*$I$16 -> 0 | M40: =IF(F40="","",(L40-K40)*24) ->  | N40: =IF(F40="","",ROUND((L40-K40)*24*60,0)) ->  | Q40: =IF(F40="","","--") ->  | R40: =IF(F40="","","NO") ->  | S40: =$I$17*IF(OR(O40="P",O40="RP"),0.1,1)*IF(R40="SI",1,0.1) -> 6 | T40: =IF(O40="P",J40*S40*ROUND(N40/60,2),"--") -> -- | U40: =IF(O40="RP",J40*S40*ROUND(N40/60,2)*Q40/100,"--") -> -- | V40: =IF(AND(O40="F",P40="NO"),J40*S40,"--") -> -- | W40: =IF(O40="F",J40*S40*ROUND(N40/60,2),"--") -> -- | X40: =IF(AND(O40="R",P40="NO"),J40*S40*Q40/100,"--") -> -- | Y40: =IF(O40="R",J40*S40*ROUND(N40/60,2)*Q40/100,"--") -> -- | Z40: =IF(O40="RF",J40*S40*ROUND(N40/60,2),"--") -> -- | AA40: =IF(O40="RR",J40*S40*ROUND(N40/60,2)*Q40/100,"--") -> -- | AB40: =IF(F40="","","SI") -> 
J41: =H41*$I$16 -> 0 | M41: =IF(F41="","",(L41-K41)*24) ->  | N41: =IF(F41="","",ROUND((L41-K41)*24*60,0)) ->  | Q41: =IF(F41="","","--") ->  | R41: =IF(F41="","","NO") ->  | S41: =$I$17*IF(OR(O41="P",O41="RP"),0.1,1)*IF(R41="SI",1,0.1) -> 6 | T41: =IF(O41="P",J41*S41*ROUND(N41/60,2),"--") -> -- | U41: =IF(O41="RP",J41*S41*ROUND(N41/60,2)*Q41/100,"--") -> -- | V41: =IF(AND(O41="F",P41="NO"),J41*S41,"--") -> -- | W41: =IF(O41="F",J41*S41*ROUND(N41/60,2),"--") -> -- | X41: =IF(AND(O41="R",P41="NO"),J41*S41*Q41/100,"--") -> -- | Y41: =IF(O41="R",J41*S41*ROUND(N41/60,2)*Q41/100,"--") -> -- | Z41: =IF(O41="RF",J41*S41*ROUND(N41/60,2),"--") -> -- | AA41: =IF(O41="RR",J41*S41*ROUND(N41/60,2)*Q41/100,"--") -> -- | AB41: =IF(F41="","","SI") -> 
C43: (²) | D43: P - PROGRAMADA ; F - FORZADA ; R - REDUCCIÓN FORZADA | T43: =SUM(T20:T42) -> 12.4488 | U43: =SUM(U20:U42) -> 0 | V43: 13708.5 | W43: 27468.87 | X43: 666.9 | Y43: 366.795 | Z43: 0 | AA43: 0 | AC43: =ROUND(SUM(AC20:AC42),2) -> 110761.19

Sheet DATO
A1: Mes | B1: Mes | C1: Dia | D1: Año
A2: enero | B2: 01 | C2: 31 | D2: 2006
A3: febrero | B3: 02 | C3: =IF(MOD(E14,4)=0,29,28) -> 29 | D3: =+D2+1 -> 2007
A4: marzo | B4: 03 | C4: 31 | D4: =+D3+1 -> 2008
A5: abril | B5: 04 | C5: 30 | D5: =+D4+1 -> 2009
A6: mayo | B6: 05 | C6: 31 | D6: 2010
A7: junio | B7: 06 | C7: 30 | D7: 2011
A8: julio | B8: 07 | C8: 31 | D8: 2012
A9: agosto | B9: 08 | C9: 31 | D9: 2013
A10: septiembre | B10: 09 | C10: 30 | D10: 2014
A11: octubre | B11: 10 | C11: 31 | D11: 2015
A12: noviembre | B12: 11 | C12: 30 | D12: 2016
A13: diciembre | B13: 12 | C13: 31 | I13: Total
A14: 11 | B14: 1 | C14: =CELL("CONTENIDO",OFFSET(A1,B14,0)) -> enero | D14: =CELL("CONTENIDO",OFFSET(C1,B14,0)) -> 31 | E14: =CELL("CONTENIDO",OFFSET(D1,A14,0)) -> 2016 | F14: ="Desde el 01 al " & D14 & " de " & C14 & " de " & E14 -> Desde el 01 al 31 de enero de 2016 | G14: =CELL("CONTENIDO",OFFSET(B1,B14,0)) -> 01 | H14: =RIGHT(E14,2) -> 16 | I14: B14
B15: ="\\rugor\files\Transporte\Transporte\AA PROCESO AUT ARCHIVOS J\TRANSNEA\" &E14 -> \\rugor\files\Transporte\Transporte\AA PROCESO AUT ARCHIVOS J\TRANSNEA\2016 | G15: ="J"&G14&H14&"NEA" -> J0116NEA
B16: ="\\rugor\files\Transporte\transporte\AA PROCESO AUT\INTERCAMBIO\" &H14&G14 -> \\rugor\files\Transporte\transporte\AA PROCESO AUT\INTERCAMBIO\1601
A17: Hoja | B17: FilaInicio | C17: FilasPlantilla | D17: Columnas | E17: NombreHoja | F17: OrigenDeDatos | G17: Col00 | H17: Col01 | I17: Col02 | J17: Col03 | K17: Col04 | L17: Col05 | M17: Col06 | N17: Col07 | O17: Col08 | P17: Col09 | Q17: Col10 | R17: Col11 | S17: Col12 | T17: Col13 | U17: Col14 | V17: Col15 | W17: FILHTOTAL | X17: COLHTOTAL | Y17: FILHCALC | Z17: COLHCALC | AA17: FILTRANSP | AB17: COLTRANSP | AC17: COL TSAL
A18: MODELO L | B18: 23 | C18: 20 | D18: 11 | E18: ="LI-" & $G$14 -> LI-01 | F18: TRANSNEA_INDISPONIBILIDADES_LINEAS_TRANSNEA.XLS | G18: 3 | H18: 5 | I18: 4 | J18: 6 | K18: 7 | L18: 8 | M18: 0 | N18: 10 | O18: 11 | P18: 14 | Q18: 0 | R18: 26 | S18: 0 | T18: 0 | U18: 0 | V18: 0 | W18: 20 | X18: 9 | Y18: 44 | Z18: 27 | AA18: 21 | AB18: 27 | AC18: 14
A19: MODELO T | B19: 22 | C19: 20 | D19: 13 | E19: ="T-" & $G$14 -> T-01 | F19: TRANSNEA_INDISPONIBILIDADES_TRAFOS_TRANSNEA.XLS | G19: 3 | H19: 5 | I19: 4 | J19: 6 | K19: 7 | L19: 8 | M19: 9 | N19: 11 | O19: 12 | P19: 15 | Q19: 16 | R19: 18 | S19: 28 | T19: 17 | U19: 0 | V19: 0 | W19: 28 | X19: 9 | Y19: 43 | Z19: 29 | AA19: 20 | AB19: 29 | AC19: 15
A20: MODELO S | B20: 22 | C20: 20 | D20: 10 | E20: ="SA-" & $G$14 -> SA-01 | F20: TRANSNEA_INDISPONIBILIDADES_SALIDAS_TRANSNEA.XLS | G20: 3 | H20: 5 | I20: 4 | J20: 6 | K20: 7 | L20: 8 | M20: 10 | N20: 11 | O20: 14 | P20: 15 | Q20: 21 | R20: 0 | S20: 0 | T20: 0 | U20: 0 | V20: 0 | W20: 32 | X20: 9 | Y20: 43 | Z20: 22 | AA20: 20 | AB20: 22 | AC20: 14
A21: MODELO L DPEC | B21: 23 | C21: 20 | D21: 11 | E21: ="LI-DPEC-" & $G$14 -> LI-DPEC-01 | F21: TRANSNEA_INDISPONIBILIDADES_LINEAS_DPEC.XLS | G21: 3 | H21: 5 | I21: 4 | J21: 6 | K21: 7 | L21: 8 | M21: 0 | N21: 10 | O21: 11 | P21: 14 | Q21: 0 | R21: 26 | S21: 0 | T21: 0 | U21: 0 | V21: 0 | W21: 21 | X21: 9 | Y21: 44 | Z21: 27 | AA21: 21 | AB21: 27 | AC21: 14
A22: MODELO L ENECOR | B22: 23 | C22: 20 | D22: 11 | E22: ="LI-ENECOR-" & $G$14 -> LI-ENECOR-01 | F22: TRANSNEA_INDISPONIBILIDADES_LINEAS_ENECOR.XLS | G22: 3 | H22: 5 | I22: 4 | J22: 6 | K22: 7 | L22: 8 | M22: 0 | N22: 10 | O22: 11 | P22: 14 | Q22: 0 | R22: 26 | S22: 0 | T22: 0 | U22: 0 | V22: 0 | W22: 22 | X22: 9 | Y22: 44 | Z22: 27 | AA22: 21 | AB22: 27 | AC22: 14
A23: MODELO L ELING | B23: 25 | C23: 20 | D23: 11 | E23: ="LI-ELECT-" & $G$14 -> LI-ELECT-01 | F23: TRANSNEA_INDISPONIBILIDADES_LINEAS_ELECTROINGENIERIA.XLS | G23: 3 | H23: 5 | I23: 4 | J23: 6 | K23: 7 | L23: 8 | M23: 0 | N23: 10 | O23: 11 | P23: 14 | Q23: 0 | R23: 26 | S23: 0 | T23: 0 | U23: 0 | V23: 0 | W23: 23 | X23: 9 | Y23: 44 | Z23: 27 | AA23: 21 | AB23: 27 | AC23: 14
A24: MODELO T ELING | B24: 22 | C24: 20 | D24: 13 | E24: ="T-ELECT-" & $G$14 -> T-ELECT-01 | F24: TRANSNEA_INDISPONIBILIDADES_TRAFOS_ELECTROINGENIERIA.XLS | G24: 3 | H24: 5 | I24: 4 | J24: 6 | K24: 7 | L24: 8 | M24: 9 | N24: 11 | O24: 12 | P24: 15 | Q24: 16 | R24: 18 | S24: 28 | T24: 17 | U24: 0 | V24: 0 | W24: 29 | X24: 9 | Y24: 43 | Z24: 29 | AA24: 20 | AB24: 29 | AC24: 15
A25: MODELO S ELING | B25: 22 | C25: 20 | D25: 10 | E25: ="SA-ELECT-" & $G$14 -> SA-ELECT-01 | F25: TRANSNEA_INDISPONIBILIDADES_SALIDAS_ELECTROINGENIERIA.XLS | G25: 3 | H25: 5 | I25: 4 | J25: 6 | K25: 7 | L25: 8 | M25: 10 | N25: 11 | O25: 14 | P25: 15 | Q25: 21 | R25: 0 | S25: 0 | T25: 0 | U25: 0 | V25: 0 | W25: 33 | X25: 9 | Y25: 43 | Z25: 22 | AA25: 20 | AB25: 22 | AC25: 14
A26: SUP-DPEC | B26: 26 | C26: 25 | D26: 11 | E26: SUP-DPEC | F26: TRANSNEA_INDISPONIBILIDADES_LINEAS_DPEC.XLS | G26: 0 | H26: 0 | I26: 0 | J26: 4 | K26: 5 | L26: 6 | M26: 0 | N26: 8 | O26: 9 | P26: 12 | Q26: 0 | R26: 24 | S26: 0 | T26: 0 | U26: 0 | V26: 0 | W26: 0 | X26: 0 | Y26: 0 | Z26: 0 | AA26: 0 | AB26: 0 | AC26: 0
A27: MODELO VST | B27: 19 | C27: 24 | D27: 4 | E27: ="CAUSAS-VST-" & $G$14 -> CAUSAS-VST-01 | F27: TRANSNEA_CAUSAS_VST.XLS | G27: 3 | H27: 4 | I27: 5 | J27: 6 | K27: 7 | L27: 0 | M27: 0 | N27: 0 | O27: 0 | P27: 0 | Q27: 0 | R27: 0 | S27: 0 | T27: 0 | U27: 0 | V27: 0 | W27: 999 | X27: 999 | Y27: 0 | Z27: 0 | AA27: 0 | AB27: 0 | AC27: 0
